fUSD/lending_fUSD_20241125
["ID","MTS","AMOUNT","RATE_DAILY","PERIOD"]
[343240254,1732520728781,-500.0,0.00043233,30]
[343240255,1732520728846,-413.62426185,0.00043233,31]
[343240256,1732520728908,-500.0,0.00043233,31]
[343240257,1732520728969,-500.0,0.00043233,31]
[343240258,1732520729029,-468.13674364,0.00043233,31]
[343240259,1732520729094,-500.0,0.00043234,2]
[343240260,1732520729153,-200.0,0.00043234,7]
[343240261,1732520729213,-500.0,0.00043234,2]
[343240262,1732520729271,-185.263678,0.00043234,14]
[343240263,1732520729334,-185.263678,0.00043234,14]
[343240264,1732520729582,-151.0,0.00043234,14]
[343240265,1732520729647,-151.0,0.00043234,14]
[343240266,1732520729704,-151.0,0.00043234,14]
[343240267,1732520729762,-151.0,0.00043234,14]
[343240268,1732520729822,-280.204461,0.00043234,14]
[343240269,1732520729880,-151.0,0.00043234,14]
[343240270,1732520729939,-151.0,0.00043234,14]
[343240271,1732520729996,-151.0,0.00043234,14]
[343240272,1732520730053,-151.0,0.00043234,14]
[343240273,1732520730112,-151.0,0.00043234,14]
[343240274,1732520730169,-151.0,0.00043234,14]
[343240275,1732520730225,-151.0,0.00043234,14]
[343240276,1732520730282,-500.0,0.00043234,14]
[343240277,1732520730338,-151.0,0.00043234,14]
[343240278,1732520730394,-151.0,0.00043234,14]
[343240279,1732520730577,-151.0,0.00043234,14]
[343240280,1732520730638,-151.0,0.00043234,14]
[343240281,1732520730696,-914.409295,0.00043234,14]
[343240282,1732520730756,-914.409295,0.00043234,14]
[343240283,1732520730813,-655.079709,0.00043234,14]
[343240284,1732520730871,-655.079709,0.00043234,14]
[343240285,1732520730928,-151.0,0.00043234,14]
[343240286,1732520730984,-151.0,0.00043234,14]
[343240287,1732520731043,-655.079709,0.00043234,14]
[343240288,1732520731102,-655.079709,0.00043234,14]
[343240289,1732520731159,-914.409295,0.00043234,14]
[343240290,1732520731217,-151.0,0.00043234,14]
[343240291,1732520731272,-151.0,0.00043234,14]
[343240292,1732520731328,-914.409295,0.00043234,14]
[343240293,1732520731545,-346.091532,0.00043234,14]
[343240294,1732520731610,-346.091532,0.00043234,14]
[343240295,1732520731671,-346.091532,0.00043234,14]
[343240296,1732520731734,-346.091532,0.00043234,14]
[343240297,1732520731791,-910.658723,0.00043234,14]
[343240298,1732520731849,-910.658723,0.00043234,14]
[343240299,1732520731905,-910.658723,0.00043234,14]
[343240300,1732520731961,-910.658723,0.00043234,14]
[343240301,1732520732019,-151.0,0.00043234,14]
[343240302,1732520732077,-151.0,0.00043234,14]
[343240303,1732520732139,-151.0,0.00043234,14]
[343240304,1732520732197,-151.0,0.00043234,14]
[343240305,1732520732257,-151.0,0.00043234,14]
[343240306,1732520732316,-151.0,0.00043234,14]
[343240307,1732520732375,-151.0,0.00043234,14]
[343240308,1732520732599,-231.533698,0.00043234,14]
[343240309,1732520732654,-231.533698,0.00043234,14]
[343240310,1732520732712,-231.533698,0.00043234,14]
[343240311,1732520732770,-231.533698,0.00043234,14]
[343240312,1732520732826,-231.533698,0.00043234,14]
[343240313,1732520732882,-231.533698,0.00043234,14]
[343240314,1732520732936,-834.971716,0.00043234,14]
[343240315,1732520732991,-151.0,0.00043234,14]
[343240316,1732520733049,-224.491194,0.00043234,14]
[343240317,1732520733108,-151.0,0.00043234,14]
[343240318,1732520733167,-151.0,0.00043234,14]
[343240319,1732520733228,-834.971716,0.00043234,14]
[343240320,1732520733285,-151.0,0.00043234,14]
[343240321,1732520733346,-834.971716,0.00043234,14]
[343240322,1732520733406,-834.971716,0.00043234,14]
[343240323,1732520733621,-834.971716,0.00043234,14]
[343240324,1732520733683,-151.0,0.00043234,14]
[343240325,1732520733743,-151.0,0.00043234,14]
[343240326,1732520733803,-151.0,0.00043234,14]
[343240327,1732520733861,-151.0,0.00043234,14]
[343240328,1732520733919,-151.0,0.00043234,14]
[343240329,1732520733979,-151.0,0.00043234,14]
[343240330,1732520734038,-151.0,0.00043234,14]
[343240331,1732520734103,-151.0,0.00043234,14]
[343240332,1732520734162,-151.0,0.00043234,14]
[343240333,1732520734221,-10000.0,0.00043234,14]
[343240334,1732520734283,-10000.0,0.00043234,14]
[343240335,1732520734346,-10000.0,0.00043234,14]
[343240336,1732520734406,-10000.0,0.00043234,14]
[343240337,1732520734620,-10000.0,0.00043234,14]
[343240338,1732520734680,-10000.0,0.00043234,14]
[343240339,1732520734739,-10000.0,0.00043234,14]
[343240340,1732520734801,-10000.0,0.00043234,14]
[343240341,1732520734858,-10000.0,0.00043234,14]
[343240342,1732520734917,-10000.0,0.00043234,14]
[343240343,1732520734976,-10000.0,0.00043234,14]
[343240344,1732520735034,-6210.334206,0.00043234,14]
[343240345,1732520735092,-151.0,0.00043234,14]
[343240346,1732520735151,-207.480351,0.00043234,14]
[343240347,1732520735213,-151.0,0.00043234,14]
[343240348,1732520735274,-151.0,0.00043234,14]
[343240349,1732520735332,-151.0,0.00043234,14]
[343240350,1732520735394,-151.0,0.00043234,14]
[343240351,1732520735455,-151.0,0.00043234,14]
[343240352,1732520735643,-151.0,0.00043234,14]
[343240353,1732520735703,-151.0,0.00043234,14]
[343240354,1732520735763,-151.0,0.00043234,14]
[343240355,1732520735819,-500.0,0.00043234,7]
[343240356,1732520735876,-500.0,0.00043234,7]
[343240357,1732520735934,-500.0,0.00043234,30]
[343240358,1732520735992,-500.0,0.00043234,30]
[343240359,1732520736050,-515.24262366,0.00043234,30]
[343240360,1732520736111,-3526.07,0.00043234,30]
[343240361,1732520736169,-509.81453786,0.00043234,30]
[343240362,1732520736228,-500.0,0.00043234,30]
[343240363,1732520736286,-151.0,0.00043235,14]
[343240364,1732520736349,-151.0,0.00043235,14]
[343240365,1732520736407,-292.565,0.00043235,7]
[343240366,1732520736465,-292.565,0.00043235,7]
[343240367,1732520736711,-292.565,0.00043235,7]
[343240368,1732520736774,-292.565,0.00043235,7]
[343240369,1732520736832,-151.0,0.00043235,3]
[343240370,1732520736895,-151.0,0.00043235,14]
[343240371,1732520736953,-151.0,0.00043235,14]
[343240372,1732520737009,-151.0,0.00043235,3]
[343240373,1732520737067,-151.0,0.00043235,14]
[343240374,1732520737125,-151.0,0.00043235,14]
[343240375,1732520737184,-151.0,0.00043235,14]
[343240376,1732520737242,-151.0,0.00043235,14]
[343240377,1732520737299,-151.0,0.00043235,14]
[343240378,1732520737358,-151.0,0.00043235,14]
[343240379,1732520737414,-151.0,0.00043235,14]
[343240380,1732520737471,-151.0,0.00043235,14]
[343240381,1732520737695,-185.263678,0.00043235,14]
[343240382,1732520737754,-185.263678,0.00043235,14]
[343240383,1732520737812,-185.263678,0.00043235,14]
[343240384,1732520737870,-185.263678,0.00043235,14]
[343240385,1732520737927,-151.0,0.00043235,14]
[343240386,1732520737985,-151.0,0.00043235,14]
[343240387,1732520738043,-151.0,0.00043235,14]
[343240388,1732520738100,-151.0,0.00043235,14]
[343240389,1732520738155,-151.0,0.00043235,14]
[343240390,1732520738211,-156.062092,0.00043235,14]
[343240391,1732520738266,-151.0,0.00043235,14]
[343240392,1732520738323,-151.0,0.00043235,14]
[343240393,1732520738376,-151.0,0.00043235,14]
[343240394,1732520738432,-151.0,0.00043235,14]
[343240395,1732520738486,-151.0,0.00043235,14]
[343240396,1732520738682,-151.0,0.00043235,14]
[343240397,1732520738739,-151.0,0.00043235,14]
[343240398,1732520738794,-151.0,0.00043235,14]
[343240399,1732520738851,-151.0,0.00043235,14]
[343240400,1732520738907,-171.044185,0.00043235,14]
[343240401,1732520738966,-151.0,0.00043235,14]
[343240402,1732520739022,-151.0,0.00043235,14]
[343240403,1732520739077,-283.087534,0.00043235,14]
[343240404,1732520739135,-151.0,0.00043235,14]
[343240405,1732520739192,-151.0,0.00043235,14]
[343240406,1732520739251,-151.0,0.00043235,14]
[343240407,1732520739308,-151.0,0.00043235,14]
[343240408,1732520739366,-151.0,0.00043235,14]
[343240409,1732520739424,-151.0,0.00043235,14]
[343240410,1732520739480,-151.0,0.00043235,14]
[343240411,1732520739659,-151.0,0.00043235,14]
[343240412,1732520739716,-151.0,0.00043235,14]
[343240413,1732520739773,-151.0,0.00043235,14]
[343240414,1732520739829,-185.128296,0.00043235,14]
[343240415,1732520739883,-151.0,0.00043235,14]
[343240416,1732520739940,-151.0,0.00043235,14]
[343240417,1732520739999,-151.0,0.00043235,14]
[343240418,1732520740058,-182.956629,0.00043235,14]
[343240419,1732520740119,-914.409295,0.00043235,14]
[343240420,1732520740178,-914.409295,0.00043235,14]
[343240421,1732520740237,-914.409295,0.00043235,14]
[343240422,1732520740296,-655.079709,0.00043235,14]
[343240423,1732520740359,-914.409295,0.00043235,14]
[343240424,1732520740419,-655.079709,0.00043235,14]
[343240425,1732520740645,-655.079709,0.00043235,14]
[343240426,1732520740704,-655.079709,0.00043235,14]
[343240427,1732520740761,-151.0,0.00043235,14]
[343240428,1732520740819,-151.690971,0.00043235,14]
[343240429,1732520740876,-655.079709,0.00043235,14]
[343240430,1732520740933,-655.079709,0.00043235,14]
[343240431,1732520740991,-655.079709,0.00043235,14]
[343240432,1732520741049,-655.079709,0.00043235,14]
[343240433,1732520741107,-155.820989,0.00043235,14]
[343240434,1732520741166,-914.409295,0.00043235,14]
[343240435,1732520741224,-914.409295,0.00043235,14]
[343240436,1732520741282,-914.409295,0.00043235,14]
[343240437,1732520741339,-914.409295,0.00043235,14]
[343240438,1732520741396,-346.091532,0.00043235,14]
[343240439,1732520741453,-346.091532,0.00043235,14]
[343240440,1732520741634,-346.091532,0.00043235,14]
[343240441,1732520741691,-346.091532,0.00043235,14]
[343240442,1732520741747,-346.091532,0.00043235,14]
[343240443,1732520741802,-346.091532,0.00043235,14]
[343240444,1732520741857,-346.091532,0.00043235,14]
[343240445,1732520741912,-346.091532,0.00043235,14]
[343240446,1732520741968,-910.658723,0.00043235,14]
[343240447,1732520742025,-910.658723,0.00043235,14]
[343240448,1732520742082,-910.658723,0.00043235,14]
[343240449,1732520742135,-910.658723,0.00043235,14]
[343240450,1732520742194,-910.658723,0.00043235,14]
[343240451,1732520742253,-910.658723,0.00043235,14]
[343240452,1732520742308,-910.658723,0.00043235,14]
[343240453,1732520742366,-910.658723,0.00043235,14]
[343240454,1732520742423,-151.0,0.00043235,14]
[343240455,1732520742651,-151.0,0.00043235,14]
[343240456,1732520742709,-151.0,0.00043235,14]
[343240457,1732520742769,-151.0,0.00043235,14]
[343240458,1732520742826,-231.533698,0.00043235,14]
[343240459,1732520742884,-231.533698,0.00043235,14]
[343240460,1732520742942,-231.533698,0.00043235,14]
[343240461,1732520742998,-231.533698,0.00043235,14]
[343240462,1732520743053,-231.533698,0.00043235,14]
[343240463,1732520743110,-231.533698,0.00043235,14]
[343240464,1732520743168,-151.0,0.00043235,14]
[343240465,1732520743228,-834.971716,0.00043235,14]
[343240466,1732520743287,-151.0,0.00043235,14]
[343240467,1732520743345,-834.971716,0.00043235,14]
[343240468,1732520743407,-206.715415,0.00043235,14]
[343240469,1732520743599,-834.971716,0.00043235,14]
[343240470,1732520743657,-834.971716,0.00043235,14]
[343240471,1732520743717,-834.971716,0.00043235,14]
[343240472,1732520743775,-834.971716,0.00043235,14]
[343240473,1732520743833,-151.0,0.00043235,14]
[343240474,1732520743895,-151.0,0.00043235,14]
[343240475,1732520743957,-151.0,0.00043235,14]
[343240476,1732520744018,-151.0,0.00043235,14]
[343240477,1732520744074,-151.0,0.00043235,14]
[343240478,1732520744130,-151.0,0.00043235,14]
[343240479,1732520744189,-151.0,0.00043235,14]
[343240480,1732520744249,-151.0,0.00043235,14]
[343240481,1732520744308,-151.0,0.00043235,14]
[343240482,1732520744367,-151.0,0.00043235,14]
[343240483,1732520744425,-10000.0,0.00043235,14]
[343240484,1732520744608,-4130.14137384,0.00043235,14]
[343240485,1732520745441,-162.85877778,0.00043233,30]
[343240486,1732520745485,-162.85877778,0.00043233,30]
[343240487,1732520745528,-162.85877778,0.00043233,30]
[343240488,1732520745582,-11.42366666,0.00043233,30]
[343240489,1732520745608,-151.43511112,0.00043233,30]
[343240490,1732520745657,-162.85877778,0.00043233,30]
[343240491,1732520745704,-162.85877778,0.00043233,30]
[343240492,1732520745751,-22.84733332,0.00043233,30]
[343240493,1732520745773,-140.01144446,0.00043233,30]
[343240494,1732520745818,-162.85877778,0.00043233,30]
[343240495,1732520745859,-162.85877778,0.00043233,30]
[343240496,1732520745903,-34.27099998,0.00043233,30]
[343240497,1732520745925,-128.5877778,0.00043234,30]
[343240498,1732520745962,-162.85877778,0.00043234,30]
[343240499,1732520746003,-162.85877778,0.00043234,30]
[343240500,1732520746052,-45.69466664,0.00043234,30]
[343240501,1732520746074,-117.16411094,0.00043234,30]
[343240505,1732520797455,159.9,0.00030685,2]
[343240516,1732521031550,-329.14260328,0.00042111,2]
[343240517,1732521031562,-670.85739672,0.00042111,2]
[343240518,1732521031572,-95.61300076,0.00042111,120]
[343240519,1732521031720,-154.38699924,0.00042111,120]
[343240520,1732521031730,-159.9,0.00042496,2]
[343240521,1732521031739,-154.11,0.00042599,120]
[343240522,1732521031748,-456.26,0.0004296,120]
[343240523,1732521031757,-230.0,0.00043133,5]
[343240524,1732521031767,-901.85686618,0.00043134,2]
[343240525,1732521031883,-3230.82203382,0.00043134,2]
[343240527,1732521031893,-237.5479,0.00043134,2]
[343240528,1732521031903,-755.2669,0.00043134,2]
[343240529,1732521031912,-293.61771573,0.00043135,15]
[343240530,1732521031922,-304.67935079,0.00043135,2]
[343240531,1732521031932,-2500.0,0.00043135,2]
[343240532,1732521031942,-7329.76,0.00043221,15]
[343240533,1732521031951,-3000.0,0.00043221,5]
[343240535,1732521031960,-500.0,0.00043233,30]
[343240537,1732521031970,-614.02,0.00043233,30]
[343240539,1732521031979,-500.0,0.00043233,30]
[343240541,1732521031988,-2973.74,0.00043233,30]
[343240542,1732521031997,-4736.47,0.00043233,30]
[343240544,1732521032007,-6311.51,0.00043233,30]
[343240547,1732521032017,-552.45513283,0.00043233,30]
[343240549,1732521032026,-500.0,0.00043233,30]
[343240550,1732521032035,-500.0,0.00043233,30]
[343240552,1732521032045,-500.0,0.00043233,30]
[343240554,1732521032054,-500.0,0.00043233,30]
[343240557,1732521032064,-685.68,0.00043233,30]
[343240558,1732521032073,-846.61,0.00043233,30]
[343240560,1732521032083,-500.0,0.00043233,30]
[343240563,1732521032093,-500.0,0.00043233,30]
[343240564,1732521032102,-436.75106135,0.00043233,30]
[343240565,1732521032114,-862.40207535,0.00043233,30]
[343240566,1732521032126,-4497.4368633,0.00043233,30]
[343240567,1732521032135,-522.44848778,0.00043233,30]
[343240568,1732521032146,-500.0,0.00043233,30]
[343240569,1732521032155,-500.0,0.00043233,30]
[343240570,1732521032165,-500.0,0.00043233,30]
[343240571,1732521032174,-1084.45,0.00043233,30]
[343240572,1732521032184,-500.0,0.00043233,30]
[343240574,1732521032193,-500.0,0.00043233,30]
[343240576,1732521032202,-2095.78,0.00043233,30]
[343240578,1732521032212,-500.0,0.00043233,30]
[343240580,1732521032221,-500.0,0.00043233,30]
[343240582,1732521032231,-500.0,0.00043233,30]
[343240584,1732521032240,-500.0,0.00043233,30]
[343240586,1732521032249,-500.0,0.00043233,30]
[343240588,1732521032258,-419.88464893,0.00043233,30]
[343240590,1732521032270,-81.99171817,0.00043233,30]
[343240592,1732521032280,-4790.73,0.00043233,30]
[343240594,1732521032290,-500.0,0.00043233,30]
[343240596,1732521032299,-742.48,0.00043233,30]
[343240598,1732521032309,-500.0,0.00043233,30]
[343240600,1732521032318,-6462.52,0.00043233,30]
[343240602,1732521032327,-500.0,0.00043233,30]
[343240604,1732521032336,-500.0,0.00043233,30]
[343240606,1732521032347,-1186.49,0.00043233,30]
[343240608,1732521032356,-500.0,0.00043233,30]
[343240610,1732521032365,-500.0,0.00043233,30]
[343240612,1732521032375,-6407.79,0.00043233,30]
[343240614,1732521032385,-386.89147494,0.00043233,30]
[343240616,1732521032394,-500.0,0.00043233,30]
[343240618,1732521032407,-1585.52,0.00043233,30]
[343240620,1732521032416,-500.0,0.00043233,30]
[343240622,1732521032426,-1211.97844515,0.00043233,30]
[343240624,1732521032437,-113.43155485,0.00043233,30]
[343240626,1732521032447,-500.0,0.00043233,30]
[343240628,1732521032456,-513.61906007,0.00043233,30]
[343240630,1732521032465,-934.64,0.00043233,30]
[343240632,1732521032475,-500.0,0.00043233,30]
[343240634,1732521032484,-500.0,0.00043233,30]
[343240636,1732521032494,-500.0,0.00043233,30]
[343240638,1732521032503,-500.0,0.00043233,30]
[343240640,1732521032512,-500.0,0.00043233,30]
[343240642,1732521032522,-500.0,0.00043233,30]
[343240644,1732521032531,-1455.87,0.00043233,30]
[343240646,1732521032541,-500.0,0.00043233,30]
[343240648,1732521032550,-500.0,0.00043233,30]
[343240650,1732521032560,-500.0,0.00043233,30]
[343240671,1732521032755,-500.0,0.00043233,30]
[343240673,1732521032764,-500.0,0.00043233,30]
[343240675,1732521032774,-4063.92,0.00043233,30]
[343240677,1732521032783,-500.0,0.00043233,30]
[343240679,1732521032792,-4628.24,0.00043233,30]
[343240681,1732521032802,-500.0,0.00043233,30]
[343240683,1732521032811,-505.03,0.00043233,30]
[343240685,1732521032821,-12209.19087558,0.00043233,30]
[343240687,1732521032833,-814.32,0.00043233,30]
[343240689,1732521032847,-851.64,0.00043233,30]
[343240692,1732521032858,-807.04,0.00043233,30]
[343240694,1732521032870,-473.84912442,0.00043233,30]
[343240696,1732521032879,-447.83487558,0.00043233,30]
[343240698,1732521032891,-52.16512442,0.00043233,30]
[343240700,1732521032900,-500.0,0.00043233,30]
[343240702,1732521032911,-281.83487558,0.00043233,30]
[343240949,1732521037591,-218.16512442,0.00043233,30]
[343240950,1732521037606,-500.0,0.00043233,30]
[343240951,1732521037616,-500.0,0.00043233,30]
[343240952,1732521037626,-705.01,0.00043233,30]
[343240953,1732521037636,-500.0,0.00043233,30]
[343240954,1732521037650,-1196.68287558,0.00043233,30]
[343240955,1732521037675,-1051.57712442,0.00043233,30]
[343240956,1732521037686,-500.0,0.00043233,30]
[343240957,1732521037695,-500.0,0.00043233,30]
[343240958,1732521037705,-500.0,0.00043233,30]
[343240959,1732521037715,-500.0,0.00043233,30]
[343240960,1732521037724,-500.0,0.00043233,30]
[343240961,1732521037734,-500.0,0.00043233,30]
[343240962,1732521037744,-1860.90849761,0.00043233,30]
[343240963,1732521037755,-1073.33150239,0.00043233,30]
[343240964,1732521037765,-2287.82,0.00043233,30]
[343240965,1732521037774,-500.0,0.00043233,30]
[343240966,1732521037783,-500.0,0.00043233,30]
[343240967,1732521037792,-500.0,0.00043233,30]
[343240968,1732521037802,-700.67,0.00043233,30]
[343240969,1732521037811,-1716.52,0.00043233,30]
[343240970,1732521037821,-500.0,0.00043233,30]
[343240971,1732521037830,-508.35026367,0.00043233,30]
[343240972,1732521037840,-500.0,0.00043233,30]
[343240973,1732521037851,-500.0,0.00043233,30]
[343240974,1732521037861,-524.58,0.00043233,30]
[343240975,1732521037878,-500.0,0.00043233,30]
[343240976,1732521037897,-500.0,0.00043233,30]
[343240977,1732521037907,-500.0,0.00043233,30]
[343240978,1732521037916,-529.01011792,0.00043233,30]
[343240979,1732521037926,-500.0,0.00043233,30]
[343240980,1732521037936,-500.0,0.00043233,30]
[343240981,1732521037945,-500.0,0.00043233,30]
[343240982,1732521037954,-734.96,0.00043233,30]
[343240983,1732521037963,-500.0,0.00043233,30]
[343240984,1732521037973,-1261.7,0.00043233,30]
[343240985,1732521037983,-3375.42,0.00043233,30]
[343240986,1732521037993,-500.0,0.00043233,30]
[343240987,1732521038002,-272.33711602,0.00043233,30]
[343240988,1732521038014,-345.92288398,0.00043233,30]
[343240989,1732521038024,-500.0,0.00043233,30]
[343240990,1732521038034,-1982.6,0.00043233,30]
[343240991,1732521038043,-644.49,0.00043233,30]
[343240992,1732521038052,-679.48,0.00043233,30]
[343240993,1732521038062,-302.40115067,0.00043233,30]
[343240994,1732521038071,-500.0,0.00043233,30]
[343240995,1732521038080,-778.72,0.00043233,30]
[343240996,1732521038090,-163.12630485,0.00043233,31]
[343240997,1732521038103,-382.83588906,0.00043234,30]
[343240998,1732521038112,-500.0,0.00043234,30]
[343240999,1732521038122,-351.43925981,0.00043234,30]
[343241000,1732521038131,-526.37069265,0.00043234,30]
[343241001,1732521038142,-255.37930735,0.00043234,30]
[343241002,1732521038151,-277.31588564,0.00043234,30]
[343241003,1732521038161,-500.0,0.00043234,30]
[343241004,1732521038170,-342.36127955,0.00043234,30]
[343241005,1732521038180,-500.0,0.00043234,30]
[343241006,1732521038189,-500.0,0.00043234,30]
[343241007,1732521038198,-500.0,0.00043234,30]
[343241008,1732521038207,-500.0,0.00043234,30]
[343241009,1732521038217,-252.76444999,0.00043234,30]
[343241010,1732521038226,-500.0,0.00043234,30]
[343241011,1732521038235,-500.0,0.00043234,30]
[343241012,1732521038245,-500.0,0.00043234,30]
[343241013,1732521038254,-500.0,0.00043234,30]
[343241014,1732521038263,-577.49,0.00043234,30]
[343241015,1732521038273,-500.0,0.00043234,30]
[343241016,1732521038283,-496.06491153,0.00043234,30]
[343241017,1732521038292,-70.959664,0.00043234,30]
[343241018,1732521038328,-429.040336,0.00043234,30]
[343241019,1732521038337,-500.0,0.00043234,30]
[343241020,1732521038350,-500.0,0.00043234,30]
[343241023,1732521038359,-500.0,0.00043234,2]
[343241026,1732521038370,-524.58770249,0.00043234,30]
[343241027,1732521038379,-500.0,0.00043234,30]
[343241031,1732521038389,-500.0,0.00043234,30]
[343241033,1732521038398,-500.0,0.00043234,30]
[343241035,1732521038407,-500.0,0.00043234,30]
[343241038,1732521038416,-500.0,0.00043234,30]
[343241041,1732521038426,-500.0,0.00043234,30]
[343241043,1732521038435,-211.308855,0.00043234,30]
[343241046,1732521038446,-585.09,0.00043234,30]
[343241048,1732521038456,-211.308855,0.00043234,30]
[343241049,1732521038465,-211.308855,0.00043234,30]
[343241050,1732521038475,-500.0,0.00043234,30]
[343241051,1732521038484,-513.80950028,0.00043234,30]
[343241052,1732521038536,-500.0,0.00043234,30]
[343241053,1732521038546,-826.61,0.00043234,30]
[343241054,1732521038555,-500.0,0.00043234,30]
[343241055,1732521038565,-617.49861398,0.00043234,30]
[343241056,1732521038575,-500.0,0.00043234,30]
[343241057,1732521038584,-578.61776528,0.00043234,30]
[343241058,1732521038596,-517.45033292,0.00043234,30]
[343241059,1732521038605,-519.7398264,0.00043234,30]
[343241060,1732521038614,-1000.0,0.00043234,2]
[343241061,1732521038623,-500.0,0.00043234,30]
[343241062,1732521038632,-516.76235575,0.00043234,30]
[343241063,1732521038641,-1369.07,0.00043234,30]
[343241064,1732521038651,-500.0,0.00043234,30]
[343241065,1732521038660,-584.51,0.00043234,30]
[343241066,1732521038669,-500.0,0.00043234,30]
[343241067,1732521038678,-500.0,0.00043234,30]
[343241068,1732521038687,-517.59994588,0.00043234,30]
[343241069,1732521038697,-500.0,0.00043234,30]
[343241070,1732521038706,-489.58404495,0.00043234,30]
[343241071,1732521038715,-500.0,0.00043234,30]
[343241072,1732521038724,-500.0,0.00043234,30]
[343241073,1732521038734,-500.0,0.00043234,30]
[343241074,1732521038743,-500.0,0.00043234,30]
[343241075,1732521038752,-426.03113377,0.00043234,30]
[343241076,1732521038761,-500.0,0.00043234,30]
[343241077,1732521038770,-500.0,0.00043234,30]
[343241078,1732521038779,-500.0,0.00043234,30]
[343241079,1732521038789,-500.0,0.00043234,30]
[343241080,1732521038802,-500.0,0.00043234,30]
[343241081,1732521038813,-500.0,0.00043234,30]
[343241082,1732521038826,-500.0,0.00043234,30]
[343241083,1732521038835,-378.38354476,0.00043234,30]
[343241084,1732521038844,-500.0,0.00043234,30]
[343241085,1732521038853,-500.0,0.00043234,120]
[343241086,1732521038862,-6862.74,0.00043234,30]
[343241087,1732521038871,-300.35753704,0.00043234,30]
[343241088,1732521038881,-500.0,0.00043234,30]
[343241089,1732521038890,-500.0,0.00043234,30]
[343241090,1732521038899,-500.0,0.00043234,30]
[343241091,1732521038908,-500.0,0.00043234,30]
[343241092,1732521038917,-500.0,0.00043234,30]
[343241093,1732521038926,-500.0,0.00043234,30]
[343241094,1732521038936,-500.0,0.00043234,30]
[343241095,1732521038945,-500.0,0.00043234,30]
[343241096,1732521038955,-500.0,0.00043234,30]
[343241097,1732521038965,-500.0,0.00043234,30]
[343241098,1732521038974,-500.0,0.00043234,30]
[343241099,1732521038983,-500.0,0.00043234,30]
[343241100,1732521038992,-523.4465738,0.00043234,30]
[343241101,1732521039001,-500.0,0.00043234,30]
[343241102,1732521039011,-500.0,0.00043234,30]
[343241103,1732521039020,-528.507182,0.00043234,30]
[343241104,1732521039029,-500.0,0.00043234,30]
[343241105,1732521039038,-500.0,0.00043234,30]
[343241106,1732521039047,-500.0,0.00043234,30]
[343241107,1732521039055,-500.0,0.00043234,30]
[343241108,1732521039065,-11145.39218394,0.00043234,30]
[343241109,1732521039077,-333.4453288,0.00043234,30]
[343241110,1732521039088,-9147.03248726,0.00043234,30]
[343241111,1732521039099,-500.0,0.00043234,30]
[343241112,1732521039108,-508.83199106,0.00043234,30]
[343241113,1732521039120,-546.08320451,0.00043234,30]
[343241114,1732521039129,-500.0,0.00043234,2]
[343241115,1732521039138,-500.0,0.00043234,30]
[343241116,1732521039148,-500.0,0.00043234,30]
[343241117,1732521039159,-500.0,0.00043234,30]
[343241118,1732521039168,-500.0,0.00043234,30]
[343241119,1732521039177,-1164.21,0.00043234,30]
[343241120,1732521039186,-248.14449407,0.00043234,30]